[Event "Late-Titled-Tuesday-Blitz-April-30-2024"]
[Site "Chess.com"]
[Date "2024.04.30"]
[Round "5"]
[White "JonasEilenberg"]
[Black "georgpapi"]
[Result "1-0"]
[WhiteElo "2564"]
[BlackElo "2373"]
[TimeControl "180+1"]
[EndTime "14:57:56 PDT"]
[Termination "JonasEilenberg won on time"]

1. d4 {[%clk 0:03:00.9]} 1... Nf6 {[%clk 0:02:58.8]} 2. c4 {[%clk 0:02:58.3]}
2... g6 {[%clk 0:02:57.6]} 3. Nc3 {[%clk 0:02:58.8]} 3... Bg7 {[%clk 0:02:57.4]}
4. Nf3 {[%clk 0:02:59.2]} 4... O-O {[%clk 0:02:57.8]} 5. Bg5 {[%clk 0:02:59.7]}
5... c5 {[%clk 0:02:53.4]} 6. d5 {[%clk 0:02:58.6]} 6... d6 {[%clk 0:02:49.9]}
7. e3 {[%clk 0:02:58.5]} 7... a6 {[%clk 0:02:48.1]} 8. Be2 {[%clk 0:02:54.1]}
8... Nbd7 {[%clk 0:02:46.5]} 9. O-O {[%clk 0:02:54.2]} 9... Rb8 {[%clk
0:02:43.9]} 10. a4 {[%clk 0:02:54.1]} 10... Ng4 {[%clk 0:02:25.4]} 11. h3 {[%clk
0:02:50.8]} 11... Nge5 {[%clk 0:02:25.5]} 12. Nd2 {[%clk 0:02:50.6]} 12... f6
{[%clk 0:02:19.8]} 13. Bh4 {[%clk 0:02:50.5]} 13... g5 {[%clk 0:02:05.9]} 14.
Bg3 {[%clk 0:02:50.4]} 14... f5 {[%clk 0:02:06.2]} 15. f4 {[%clk 0:02:44.5]}
15... gxf4 {[%clk 0:02:05.4]} 16. Bxf4 {[%clk 0:02:45.4]} 16... Ng6 {[%clk
0:02:03.8]} 17. Qc2 {[%clk 0:02:45.3]} 17... Nde5 {[%clk 0:01:47.6]} 18. Nf3
{[%clk 0:02:35.9]} 18... Nxf4 {[%clk 0:01:32.8]} 19. exf4 {[%clk 0:02:36.8]}
19... Ng6 {[%clk 0:01:30.9]} 20. g3 {[%clk 0:02:32.2]} 20... e5 {[%clk
0:01:06.7]} 21. dxe6 {[%clk 0:02:31]} 21... Bxe6 {[%clk 0:01:06.1]} 22. Bd3
{[%clk 0:02:31.6]} 22... Qf6 {[%clk 0:00:58.1]} 23. Rae1 {[%clk 0:02:29.8]}
23... Rbe8 {[%clk 0:00:56.7]} 24. Kg2 {[%clk 0:02:20.4]} 24... h6 {[%clk
0:00:47.6]} 25. Re2 {[%clk 0:02:18.5]} 25... b5 {[%clk 0:00:36.8]} 26. axb5
{[%clk 0:02:10.1]} 26... axb5 {[%clk 0:00:33.7]} 27. Rfe1 {[%clk 0:02:10.2]}
27... bxc4 {[%clk 0:00:17]} 28. Bxc4 {[%clk 0:02:09.2]} 28... Bxc4 {[%clk
0:00:06.4]} 29. Rxe8 {[%clk 0:02:10.1]} 29... Rxe8 {[%clk 0:00:07.1]} 30. Rxe8+
{[%clk 0:02:10.1]} 30... Kh7 {[%clk 0:00:08]} 31. h4 {[%clk 0:01:54.3]} 31...
Nxf4+ {[%clk 0:00:07]} 32. Kh2 {[%clk 0:01:38]} 32... Ng6 {[%clk 0:00:05.6]} 33.
Qg2 {[%clk 0:01:29.3]} 33... Bf7 {[%clk 0:00:04.5]} 34. Re1 {[%clk 0:01:26.6]}
34... Ne5 {[%clk 0:00:02.6]} 35. Nxe5 {[%clk 0:01:20.7]} 35... dxe5 {[%clk
0:00:03.5]} 36. Rf1 {[%clk 0:01:19.8]} 36... f4 {[%clk 0:00:03.2]} 37. Ne4
{[%clk 0:01:17.5]} 37... Qg6 {[%clk 0:00:02]} 38. gxf4 {[%clk 0:01:13]} 38...
Qxg2+ {[%clk 0:00:02.9]} 39. Kxg2 {[%clk 0:01:13.2]} 39... Bd5 {[%clk 0:00:03]}
40. Kf3 {[%clk 0:01:12.2]} 40... exf4 {[%clk 0:00:02.7]} 41. Rd1 {[%clk
0:01:07.9]} 41... Bxe4+ {[%clk 0:00:02]} 42. Kxe4 {[%clk 0:01:08.8]} 42... Bxb2
{[%clk 0:00:02.9]} 43. Kxf4 {[%clk 0:01:06.7]} 43... Kg6 {[%clk 0:00:02.1]} 44.
Rd6+ {[%clk 0:01:06.1]} 44... Kh5 {[%clk 0:00:01.9]} 45. Rc6 {[%clk 0:00:44.6]}
45... Bd4 {[%clk 0:00:02]} 46. Kg3 {[%clk 0:00:44]} 46... Be3 {[%clk 0:00:02.1]}
47. Kh3 {[%clk 0:00:42.8]} 47... Bd4 {[%clk 0:00:02.3]} 48. Rd6 {[%clk
0:00:41.5]} 48... Be3 {[%clk 0:00:02.1]} 49. Rd5+ {[%clk 0:00:41.7]} 49... Kg6
{[%clk 0:00:02.6]} 50. Kg4 {[%clk 0:00:41.3]} 50... Bd4 {[%clk 0:00:02.3]} 51.
Rd6+ {[%clk 0:00:41.2]} 51... Kg7 {[%clk 0:00:01.9]} 52. Rc6 {[%clk 0:00:40.1]}
52... Kf7 {[%clk 0:00:01.5]} 53. Kf5 {[%clk 0:00:40.5]} 53... Kg7 {[%clk
0:00:00.9]} 54. Rc7+ {[%clk 0:00:40.3]} 54... Kf8 {[%clk 0:00:01.2]} 55. Kg6
{[%clk 0:00:39.5]} 55... Be3 {[%clk 0:00:01.8]} 56. h5 {[%clk 0:00:35.6]} 56...
Ke8 {[%clk 0:00:01.2]} 57. Kf6 {[%clk 0:00:31.2]} 57... Kd8 {[%clk 0:00:01.1]}
58. Rc6 {[%clk 0:00:21.3]} 58... Ke8 {[%clk 0:00:01.4]} 59. Ke6 {[%clk
0:00:20.2]} 59... Kf8 {[%clk 0:00:01.6]} 60. Rc8+ {[%clk 0:00:19.9]} 60... Kg7
{[%clk 0:00:01.9]} 61. Rc7+ {[%clk 0:00:20.8]} 61... Kg8 {[%clk 0:00:02.4]} 62.
Kf6 {[%clk 0:00:20.9]} 1-0

[Event "Late-Titled-Tuesday-Blitz-April-30-2024"]
[Site "Chess.com"]
[Date "2024.04.30"]
[Round "5"]
[White "slidingknight2775"]
[Black "TheAlienParty"]
[Result "1-0"]
[WhiteElo "2622"]
[BlackElo "2428"]
[TimeControl "180+1"]
[EndTime "14:57:58 PDT"]
[Termination "slidingknight2775 won by resignation"]

1. d4 {[%clk 0:03:00.9]} 1... Nf6 {[%clk 0:02:58.9]} 2. c4 {[%clk 0:03:01.5]}
2... e6 {[%clk 0:02:58.6]} 3. Nc3 {[%clk 0:03:02.1]} 3... Bb4 {[%clk 0:02:58.6]}
4. e3 {[%clk 0:03:02.7]} 4... d5 {[%clk 0:02:58]} 5. Bd2 {[%clk 0:03:01]} 5...
O-O {[%clk 0:02:56.7]} 6. Nf3 {[%clk 0:03:01.6]} 6... c5 {[%clk 0:02:56]} 7. a3
{[%clk 0:03:01.3]} 7... Bxc3 {[%clk 0:02:55.2]} 8. Bxc3 {[%clk 0:03:02.2]} 8...
Ne4 {[%clk 0:02:55.2]} 9. Rc1 {[%clk 0:03:02.9]} 9... Nc6 {[%clk 0:02:52.8]} 10.
dxc5 {[%clk 0:02:58.2]} 10... Nxc5 {[%clk 0:02:48]} 11. cxd5 {[%clk 0:02:56.6]}
11... exd5 {[%clk 0:02:37.4]} 12. Bxg7 {[%clk 0:02:41.2]} 12... Kxg7 {[%clk
0:02:36]} 13. Rxc5 {[%clk 0:02:40]} 13... Qb6 {[%clk 0:02:32.6]} 14. Qc1 {[%clk
0:02:24.5]} 14... d4 {[%clk 0:02:25.7]} 15. Nxd4 {[%clk 0:01:52.4]} 15... Nxd4
{[%clk 0:02:24.1]} 16. exd4 {[%clk 0:01:53.3]} 16... Re8+ {[%clk 0:02:24.1]} 17.
Re5 {[%clk 0:01:50.7]} 17... Bd7 {[%clk 0:02:08.9]} 18. Be2 {[%clk 0:00:50.1]}
18... f6 {[%clk 0:02:05.6]} 19. Re3 {[%clk 0:00:46.5]} 19... Qxd4 {[%clk
0:02:03.7]} 20. Qd2 {[%clk 0:00:41.4]} 20... Qxd2+ {[%clk 0:01:56.7]} 21. Kxd2
{[%clk 0:00:42.3]} 21... Bc6 {[%clk 0:01:57.1]} 22. Rxe8 {[%clk 0:00:39.5]}
22... Rxe8 {[%clk 0:01:56.7]} 23. f3 {[%clk 0:00:38.8]} 23... Rd8+ {[%clk
0:01:56.4]} 24. Ke3 {[%clk 0:00:38.8]} 24... Re8+ {[%clk 0:01:55.2]} 25. Kf2
{[%clk 0:00:39.2]} 25... Rd8 {[%clk 0:01:55.5]} 26. Rd1 {[%clk 0:00:39.5]} 26...
Rxd1 {[%clk 0:01:54]} 27. Bxd1 {[%clk 0:00:40.4]} 27... h6 {[%clk 0:01:53.7]}
28. Ke3 {[%clk 0:00:40]} 28... Kf7 {[%clk 0:01:53.3]} 29. g3 {[%clk 0:00:38.1]}
29... Ke6 {[%clk 0:01:51.2]} 30. Kd4 {[%clk 0:00:38.3]} 30... b6 {[%clk
0:01:49.5]} 31. b4 {[%clk 0:00:33.8]} 31... Kf5 {[%clk 0:01:49.2]} 32. Bc2+
{[%clk 0:00:29.7]} 32... Ke6 {[%clk 0:01:49.2]} 33. Be4 {[%clk 0:00:28.9]} 33...
Ba4 {[%clk 0:01:48.9]} 34. f4 {[%clk 0:00:28.8]} 34... Bb3 {[%clk 0:01:47.7]}
35. Bd3 {[%clk 0:00:28.4]} 35... Kd6 {[%clk 0:01:46.1]} 36. Be2 {[%clk 0:00:25]}
36... Be6 {[%clk 0:01:45.6]} 37. g4 {[%clk 0:00:24.6]} 37... Bd7 {[%clk
0:01:44.4]} 38. h4 {[%clk 0:00:24.7]} 38... Be6 {[%clk 0:01:43.9]} 39. g5 {[%clk
0:00:24.2]} 39... fxg5 {[%clk 0:01:43.7]} 40. fxg5 {[%clk 0:00:24]} 40... hxg5
{[%clk 0:01:43.4]} 41. hxg5 {[%clk 0:00:24.1]} 41... Ke7 {[%clk 0:01:22.5]} 42.
Bc4 {[%clk 0:00:19.2]} 42... Bf5 {[%clk 0:01:20.2]} 43. Ke5 {[%clk 0:00:19.3]}
43... Bc2 {[%clk 0:01:19.2]} 44. Bd5 {[%clk 0:00:18.6]} 44... a5 {[%clk
0:01:17.4]} 45. Be4 {[%clk 0:00:17.8]} 45... Ba4 {[%clk 0:01:13.3]} 46. g6
{[%clk 0:00:15.7]} 46... axb4 {[%clk 0:01:11.9]} 47. axb4 {[%clk 0:00:16.6]}
47... Be8 {[%clk 0:01:10.1]} 48. Kf5 {[%clk 0:00:12.2]} 48... Bd7+ {[%clk
0:01:08.3]} 49. Ke5 {[%clk 0:00:12.7]} 49... Be8 {[%clk 0:01:08]} 50. Kf5 {[%clk
0:00:13.4]} 50... Bd7+ {[%clk 0:01:07.9]} 51. Kg5 {[%clk 0:00:14.1]} 51... Be6
{[%clk 0:01:05.9]} 52. Kh6 {[%clk 0:00:13.6]} 52... Kf6 {[%clk 0:01:06]} 53. g7
{[%clk 0:00:11.7]} 53... Ke5 {[%clk 0:00:51.7]} 54. Bc6 {[%clk 0:00:07.6]} 54...
Bg8 {[%clk 0:00:50.2]} 55. Kg6 {[%clk 0:00:06.3]} 55... Ke6 {[%clk 0:00:50]} 56.
Ba4 {[%clk 0:00:04.5]} 56... Ke7 {[%clk 0:00:49.9]} 57. Bc2 {[%clk 0:00:04.9]}
57... Kd6 {[%clk 0:00:44.6]} 58. Bd3 {[%clk 0:00:04.9]} 58... Kd5 {[%clk
0:00:43.5]} 59. Kf6 {[%clk 0:00:04.4]} 59... Kd4 {[%clk 0:00:43.1]} 60. Bf1
{[%clk 0:00:05]} 60... Kc3 {[%clk 0:00:42.4]} 61. b5 {[%clk 0:00:05.6]} 61...
Kd4 {[%clk 0:00:41.1]} 62. Ke7 {[%clk 0:00:05.9]} 62... Ke5 {[%clk 0:00:37.3]}
63. Kf8 {[%clk 0:00:06.3]} 63... Bb3 {[%clk 0:00:37.3]} 64. g8=Q {[%clk
0:00:06.5]} 64... Bxg8 {[%clk 0:00:38.2]} 65. Kxg8 {[%clk 0:00:07.4]} 65... Kd6
{[%clk 0:00:38.4]} 66. Kf8 {[%clk 0:00:08.3]} 66... Kc5 {[%clk 0:00:38.8]} 67.
Ke7 {[%clk 0:00:08.7]} 67... Kb4 {[%clk 0:00:39.7]} 68. Kd6 {[%clk 0:00:08.9]}
68... Ka5 {[%clk 0:00:40.6]} 69. Kc6 {[%clk 0:00:09.2]} 69... Kb4 {[%clk
0:00:41.5]} 70. Kxb6 {[%clk 0:00:10.1]} 70... Kb3 {[%clk 0:00:41.8]} 71. Kc6
{[%clk 0:00:10.6]} 71... Kc3 {[%clk 0:00:42.7]} 72. b6 {[%clk 0:00:11.3]} 72...
Kd2 {[%clk 0:00:43.6]} 73. b7 {[%clk 0:00:11.9]} 73... Ke1 {[%clk 0:00:44.5]}
74. b8=Q {[%clk 0:00:12.6]} 74... Kxf1 {[%clk 0:00:45.4]} 75. Qb2 {[%clk
0:00:12.7]} 1-0

[Event "Late-Titled-Tuesday-Blitz-April-30-2024"]
[Site "Chess.com"]
[Date "2024.04.30"]
[Round "5"]
[White "Russian_berezka"]
[Black "db-banana"]
[Result "1-0"]
[WhiteElo "2626"]
[BlackElo "2467"]
[TimeControl "180+1"]
[EndTime "14:57:59 PDT"]
[Termination "Russian_berezka won by resignation"]

1. d4 {[%clk 0:03:00.9]} 1... Nf6 {[%clk 0:02:59.4]} 2. c4 {[%clk 0:03:01.5]}
2... c5 {[%clk 0:02:59.9]} 3. d5 {[%clk 0:03:01.6]} 3... e6 {[%clk 0:03:00.5]}
4. Nc3 {[%clk 0:03:01.5]} 4... exd5 {[%clk 0:03:01.1]} 5. cxd5 {[%clk
0:03:02.4]} 5... d6 {[%clk 0:03:01.6]} 6. Nf3 {[%clk 0:03:03.1]} 6... g6 {[%clk
0:03:02.1]} 7. Nd2 {[%clk 0:03:03.8]} 7... Bg7 {[%clk 0:03:02.7]} 8. e4 {[%clk
0:03:04.5]} 8... O-O {[%clk 0:03:03.3]} 9. Be2 {[%clk 0:03:05.2]} 9... a6 {[%clk
0:03:03.3]} 10. a4 {[%clk 0:03:05.6]} 10... Re8 {[%clk 0:02:59.8]} 11. O-O
{[%clk 0:03:06.1]} 11... Nbd7 {[%clk 0:02:46.1]} 12. Kh1 {[%clk 0:03:06.4]}
12... Rb8 {[%clk 0:02:43.3]} 13. f4 {[%clk 0:03:05.6]} 13... Qc7 {[%clk
0:02:24.1]} 14. e5 {[%clk 0:03:00.9]} 14... dxe5 {[%clk 0:02:21.5]} 15. Nc4
{[%clk 0:03:01.5]} 15... e4 {[%clk 0:02:15.2]} 16. f5 {[%clk 0:02:50.6]} 16...
Qd8 {[%clk 0:01:39.5]} 17. Bf4 {[%clk 0:02:29.9]} 17... Ra8 {[%clk 0:01:38.9]}
18. fxg6 {[%clk 0:02:18.3]} 18... hxg6 {[%clk 0:01:38.4]} 19. Nd6 {[%clk
0:02:15.3]} 19... Rf8 {[%clk 0:01:34.9]} 20. Bg5 {[%clk 0:02:10.2]} 20... Qb6
{[%clk 0:00:56.7]} 21. Ndxe4 {[%clk 0:01:38.9]} 21... Nxe4 {[%clk 0:00:56]} 22.
Nxe4 {[%clk 0:01:39.8]} 22... Qxb2 {[%clk 0:00:56.1]} 23. Rb1 {[%clk 0:01:08.2]}
23... Qd4 {[%clk 0:00:55.7]} 24. Qc2 {[%clk 0:00:57.8]} 24... Qxd5 {[%clk
0:00:24.8]} 25. Be7 {[%clk 0:00:57.2]} 25... Ne5 {[%clk 0:00:15.6]} 26. Bxf8
{[%clk 0:00:56.4]} 26... Kxf8 {[%clk 0:00:16.5]} 27. Rfd1 {[%clk 0:00:46.7]}
27... Qc6 {[%clk 0:00:16.6]} 28. Qxc5+ {[%clk 0:00:36.6]} 28... Qxc5 {[%clk
0:00:16.4]} 29. Nxc5 {[%clk 0:00:37.5]} 29... Bf5 {[%clk 0:00:16.2]} 30. Rxb7
{[%clk 0:00:36.7]} 30... Bh6 {[%clk 0:00:15.4]} 31. Nxa6 {[%clk 0:00:23.3]}
31... Rc8 {[%clk 0:00:15.9]} 32. Rb8 {[%clk 0:00:22.9]} 32... Rxb8 {[%clk
0:00:14.8]} 33. Nxb8 {[%clk 0:00:23.8]} 33... Bc2 {[%clk 0:00:15]} 34. Ra1
{[%clk 0:00:18.8]} 34... Be3 {[%clk 0:00:12.1]} 35. a5 {[%clk 0:00:18.8]} 35...
Bd4 {[%clk 0:00:12.5]} 36. Ra2 {[%clk 0:00:16.9]} 36... Bb3 {[%clk 0:00:12.3]}
37. Ra3 {[%clk 0:00:17.5]} 37... Bd5 {[%clk 0:00:12.6]} 38. Na6 {[%clk
0:00:11.6]} 38... g5 {[%clk 0:00:08.2]} 39. Nc7 {[%clk 0:00:09.8]} 39... Be4
{[%clk 0:00:06.6]} 40. a6 {[%clk 0:00:10]} 40... Ng6 {[%clk 0:00:07.1]} 41. a7
{[%clk 0:00:09.3]} 41... Bxa7 {[%clk 0:00:06.6]} 42. Rxa7 {[%clk 0:00:08.9]}
42... Nf4 {[%clk 0:00:07]} 43. Bf3 {[%clk 0:00:09.3]} 43... Bd3 {[%clk
0:00:05.1]} 44. Nd5 {[%clk 0:00:08.7]} 44... Ne6 {[%clk 0:00:03.1]} 45. Ra8+
{[%clk 0:00:08.7]} 45... Kg7 {[%clk 0:00:03.1]} 46. Ne7 {[%clk 0:00:09.4]} 46...
Kf6 {[%clk 0:00:02.4]} 47. Ng8+ {[%clk 0:00:09.4]} 47... Kf5 {[%clk 0:00:02.7]}
48. Nh6+ {[%clk 0:00:09.3]} 48... Kf4 {[%clk 0:00:03.3]} 49. Ra4+ {[%clk
0:00:08.7]} 49... Ke3 {[%clk 0:00:02.6]} 50. Ng4+ {[%clk 0:00:09.4]} 50... Kd2
{[%clk 0:00:02.6]} 51. h3 {[%clk 0:00:09.8]} 51... f5 {[%clk 0:00:02.5]} 52. Ne5
{[%clk 0:00:09.2]} 52... Bb5 {[%clk 0:00:01.4]} 53. Ra2+ {[%clk 0:00:09.4]}
53... Kc3 {[%clk 0:00:01.7]} 54. Kh2 {[%clk 0:00:08.8]} 54... Kd4 {[%clk
0:00:02]} 55. Nf7 {[%clk 0:00:07.8]} 55... Ke3 {[%clk 0:00:02.9]} 56. Ra5 {[%clk
0:00:06.7]} 56... Bd3 {[%clk 0:00:03.4]} 57. Re5+ {[%clk 0:00:05.9]} 57... Kf4
{[%clk 0:00:03.5]} 58. Rxe6 {[%clk 0:00:06.6]} 58... g4 {[%clk 0:00:04.1]} 59.
hxg4 {[%clk 0:00:06.8]} 59... fxg4 {[%clk 0:00:05]} 60. Rf6+ {[%clk 0:00:07.4]}
60... Ke3 {[%clk 0:00:02.9]} 61. Bxg4 {[%clk 0:00:08]} 1-0

[Event "Late-Titled-Tuesday-Blitz-April-30-2024"]
[Site "Chess.com"]
[Date "2024.04.30"]
[Round "5"]
[White "Mops_2004"]
[Black "Mackster23"]
[Result "1-0"]
[WhiteElo "2805"]
[BlackElo "2605"]
[TimeControl "180+1"]
[EndTime "14:58:00 PDT"]
[Termination "Mops_2004 won by checkmate"]

1. g3 {[%clk 0:03:00.9]} 1... e5 {[%clk 0:02:59]} 2. c4 {[%clk 0:03:00.6]} 2...
Nf6 {[%clk 0:02:57.9]} 3. Bg2 {[%clk 0:03:00.9]} 3... c6 {[%clk 0:02:50.8]} 4.
Nf3 {[%clk 0:02:59.7]} 4... d6 {[%clk 0:02:47.5]} 5. Nc3 {[%clk 0:02:58.7]} 5...
Be7 {[%clk 0:02:47.2]} 6. Qc2 {[%clk 0:02:54]} 6... O-O {[%clk 0:02:46.9]} 7. d4
{[%clk 0:02:54.2]} 7... Nbd7 {[%clk 0:02:42.5]} 8. O-O {[%clk 0:02:54.1]} 8...
Qc7 {[%clk 0:02:41.8]} 9. h3 {[%clk 0:02:47.1]} 9... h6 {[%clk 0:02:41.5]} 10.
e4 {[%clk 0:02:42.9]} 10... Re8 {[%clk 0:02:40.8]} 11. Be3 {[%clk 0:02:42.3]}
11... a6 {[%clk 0:02:33.2]} 12. Rfd1 {[%clk 0:02:29.3]} 12... Nf8 {[%clk
0:02:32.3]} 13. c5 {[%clk 0:02:16]} 13... exd4 {[%clk 0:02:24.9]} 14. cxd6
{[%clk 0:02:15.8]} 14... Bxd6 {[%clk 0:02:24]} 15. Nxd4 {[%clk 0:02:11.6]} 15...
c5 {[%clk 0:02:20.2]} 16. Ndb5 {[%clk 0:02:08.4]} 16... axb5 {[%clk 0:02:14.6]}
17. Nxb5 {[%clk 0:02:08.7]} 17... Qa5 {[%clk 0:01:30.9]} 18. Nxd6 {[%clk
0:02:07.9]} 18... Rd8 {[%clk 0:01:24.2]} 19. Qxc5 {[%clk 0:02:03.5]} 19... Qa4
{[%clk 0:01:13.5]} 20. b3 {[%clk 0:01:55.7]} 20... Qd7 {[%clk 0:01:13.2]} 21. e5
{[%clk 0:01:54]} 21... N6h7 {[%clk 0:01:07.7]} 22. f4 {[%clk 0:01:49.9]} 22...
Ne6 {[%clk 0:01:07.5]} 23. Qc2 {[%clk 0:01:49.6]} 23... Qe7 {[%clk 0:01:02.4]}
24. Bb6 {[%clk 0:01:45.2]} 24... Rf8 {[%clk 0:01:00.3]} 25. Kh2 {[%clk
0:01:43.8]} 25... Bd7 {[%clk 0:00:53]} 26. Nf5 {[%clk 0:01:42.3]} 26... Qe8
{[%clk 0:00:51.8]} 27. Bxb7 {[%clk 0:01:31.5]} 27... Rb8 {[%clk 0:00:51.5]} 28.
Nd6 {[%clk 0:01:31.7]} 28... Qe7 {[%clk 0:00:51]} 29. Qg2 {[%clk 0:01:26.6]}
29... f6 {[%clk 0:00:42.1]} 30. f5 {[%clk 0:01:24.2]} 30... fxe5 {[%clk
0:00:27.7]} 31. fxe6 {[%clk 0:01:24.2]} 31... Bxe6 {[%clk 0:00:28.4]} 32. Be3
{[%clk 0:01:05.9]} 32... Rfd8 {[%clk 0:00:21.4]} 33. Qc6 {[%clk 0:01:05.4]}
33... Nf6 {[%clk 0:00:11.4]} 34. Ba7 {[%clk 0:00:57.3]} 34... Rxd6 {[%clk
0:00:06.2]} 35. Qxd6 {[%clk 0:00:56.4]} 35... Rxb7 {[%clk 0:00:06.4]} 36. Qxe7
{[%clk 0:00:55]} 36... Rxe7 {[%clk 0:00:07.1]} 37. Bc5 {[%clk 0:00:54.2]} 37...
Rc7 {[%clk 0:00:07.4]} 38. Rac1 {[%clk 0:00:54.2]} 38... Ne4 {[%clk 0:00:05.4]}
39. Be3 {[%clk 0:00:53.9]} 39... Rf7 {[%clk 0:00:05.6]} 40. Re1 {[%clk
0:00:46.2]} 40... Rf3 {[%clk 0:00:05.2]} 41. g4 {[%clk 0:00:43.2]} 41... h5
{[%clk 0:00:04.1]} 42. Bg1 {[%clk 0:00:32.7]} 42... Ng5 {[%clk 0:00:02.6]} 43.
Re3 {[%clk 0:00:33]} 43... Rf4 {[%clk 0:00:01.8]} 44. gxh5 {[%clk 0:00:30.4]}
44... Nf3+ {[%clk 0:00:02.1]} 45. Kg3 {[%clk 0:00:30.7]} 45... Ng5 {[%clk
0:00:01.5]} 46. Rce1 {[%clk 0:00:26.2]} 46... Rf5 {[%clk 0:00:00.9]} 47. h4
{[%clk 0:00:24.3]} 47... Nf7 {[%clk 0:00:00.8]} 48. h6 {[%clk 0:00:18.9]} 48...
gxh6 {[%clk 0:00:00.5]} 49. Rf3 {[%clk 0:00:19]} 49... Rh5 {[%clk 0:00:00.6]}
50. Rf6 {[%clk 0:00:19.2]} 50... Kg7 {[%clk 0:00:00.7]} 51. Rxe6 {[%clk
0:00:19.2]} 51... Kf8 {[%clk 0:00:00.4]} 52. Rf6 {[%clk 0:00:18.8]} 52... Kg7
{[%clk 0:00:01.1]} 53. Rxf7+ {[%clk 0:00:17.8]} 53... Kxf7 {[%clk 0:00:01.5]}
54. Kg4 {[%clk 0:00:18.4]} 54... Kg6 {[%clk 0:00:00.6]} 55. Rf1 {[%clk
0:00:17.7]} 55... Rf5 {[%clk 0:00:00.4]} 56. Rxf5 {[%clk 0:00:17.2]} 56... e4
{[%clk 0:00:00.5]} 57. h5+ {[%clk 0:00:17.2]} 57... Kg7 {[%clk 0:00:00.6]} 58.
Bd4+ {[%clk 0:00:17.4]} 58... Kg8 {[%clk 0:00:00.5]} 59. Kf4 {[%clk 0:00:16.4]}
59... e3 {[%clk 0:00:00.6]} 60. Kxe3 {[%clk 0:00:16.9]} 60... Kh7 {[%clk
0:00:00.7]} 61. Kf4 {[%clk 0:00:16.5]} 61... Kg8 {[%clk 0:00:00.8]} 62. b4
{[%clk 0:00:16.4]} 62... Kh7 {[%clk 0:00:01.2]} 63. b5 {[%clk 0:00:17.3]} 63...
Kg8 {[%clk 0:00:00.9]} 64. b6 {[%clk 0:00:18.2]} 64... Kh7 {[%clk 0:00:00.8]}
65. b7 {[%clk 0:00:18.4]} 65... Kg8 {[%clk 0:00:01.4]} 66. b8=Q+ {[%clk
0:00:18.7]} 66... Kh7 {[%clk 0:00:02]} 67. Rf7# {[%clk 0:00:18.3]} 1-0

[Event "Late-Titled-Tuesday-Blitz-April-30-2024"]
[Site "Chess.com"]
[Date "2024.04.30"]
[Round "5"]
[White "Hudijegszid"]
[Black "manitodeplomo"]
[Result "1/2-1/2"]
[WhiteElo "2456"]
[BlackElo "2612"]
[TimeControl "180+1"]
[EndTime "14:58:00 PDT"]
[Termination "Game drawn by repetition"]

1. Nf3 {[%clk 0:03:00.9]} 1... g6 {[%clk 0:02:59.3]} 2. e4 {[%clk 0:02:53.4]}
2... Bg7 {[%clk 0:02:59.1]} 3. d4 {[%clk 0:02:51.3]} 3... c5 {[%clk 0:02:59.3]}
4. d5 {[%clk 0:02:50.3]} 4... d6 {[%clk 0:02:59.2]} 5. Nc3 {[%clk 0:02:46.9]}
5... Nf6 {[%clk 0:02:59.2]} 6. Bb5+ {[%clk 0:02:44.7]} 6... Bd7 {[%clk
0:02:58.9]} 7. a4 {[%clk 0:02:43.2]} 7... Bxb5 {[%clk 0:02:57.4]} 8. axb5 {[%clk
0:02:42.1]} 8... Nbd7 {[%clk 0:02:58.3]} 9. h3 {[%clk 0:02:37.1]} 9... O-O
{[%clk 0:02:58.7]} 10. O-O {[%clk 0:02:36.2]} 10... Ne8 {[%clk 0:02:59.4]} 11.
Bf4 {[%clk 0:02:32.9]} 11... Nc7 {[%clk 0:03:00]} 12. Qe2 {[%clk 0:02:16.5]}
12... Nb6 {[%clk 0:03:00.9]} 13. Rad1 {[%clk 0:02:05.5]} 13... Qd7 {[%clk
0:03:00.5]} 14. e5 {[%clk 0:02:03.4]} 14... f6 {[%clk 0:02:58.9]} 15. exd6
{[%clk 0:01:53.2]} 15... exd6 {[%clk 0:02:58.5]} 16. Rfe1 {[%clk 0:01:35.4]}
16... Rae8 {[%clk 0:02:42.1]} 17. Qd3 {[%clk 0:01:29.8]} 17... g5 {[%clk
0:02:28.9]} 18. Bg3 {[%clk 0:01:27.2]} 18... h6 {[%clk 0:02:28.7]} 19. h4 {[%clk
0:01:22.8]} 19... g4 {[%clk 0:02:20.3]} 20. Nd2 {[%clk 0:01:21.4]} 20... f5
{[%clk 0:02:20.9]} 21. Rxe8 {[%clk 0:01:08.7]} 21... Rxe8 {[%clk 0:02:21.8]} 22.
Nf1 {[%clk 0:01:00.5]} 22... c4 {[%clk 0:01:57.1]} 23. Qd2 {[%clk 0:00:53.1]}
23... Nxb5 {[%clk 0:01:57.2]} 24. Nxb5 {[%clk 0:00:51.6]} 24... Qxb5 {[%clk
0:01:58.1]} 25. Ne3 {[%clk 0:00:46.5]} 25... Qd7 {[%clk 0:01:48.2]} 26. Qa5
{[%clk 0:00:41.6]} 26... Qa4 {[%clk 0:01:24.1]} 27. Qxa4 {[%clk 0:00:33]} 27...
Nxa4 {[%clk 0:01:25]} 28. Nxf5 {[%clk 0:00:32.9]} 28... Nxb2 {[%clk 0:01:22.6]}
29. Ra1 {[%clk 0:00:31.7]} 29... Re2 {[%clk 0:01:14.2]} 30. Rxa7 {[%clk
0:00:26.8]} 30... Rxc2 {[%clk 0:01:09.7]} 31. Rxb7 {[%clk 0:00:26.6]} 31... Bf8
{[%clk 0:01:00.7]} 32. Bxd6 {[%clk 0:00:23.8]} 32... Bxd6 {[%clk 0:00:57.5]} 33.
Nxd6 {[%clk 0:00:24.7]} 33... Rd2 {[%clk 0:00:57.7]} 34. Nf5 {[%clk 0:00:22.6]}
34... c3 {[%clk 0:00:56.1]} 35. Rc7 {[%clk 0:00:14.7]} 35... c2 {[%clk
0:00:56.1]} 36. Kh2 {[%clk 0:00:11]} 36... Nd3 {[%clk 0:00:54.6]} 37. Nxh6+
{[%clk 0:00:07.1]} 37... Kf8 {[%clk 0:00:54]} 38. Nxg4 {[%clk 0:00:04.8]} 38...
c1=Q {[%clk 0:00:53]} 39. Rxc1 {[%clk 0:00:05.2]} 39... Nxc1 {[%clk 0:00:53.9]}
40. f3 {[%clk 0:00:03]} 40... Rxd5 {[%clk 0:00:53.2]} 41. Kg3 {[%clk 0:00:03.5]}
41... Nd3 {[%clk 0:00:52.9]} 42. Nf2 {[%clk 0:00:02.2]} 42... Nxf2 {[%clk
0:00:52.5]} 43. Kxf2 {[%clk 0:00:03.1]} 43... Rd4 {[%clk 0:00:52.3]} 44. g4
{[%clk 0:00:04]} 44... Kf7 {[%clk 0:00:51.8]} 45. Kg3 {[%clk 0:00:03.8]} 45...
Kf6 {[%clk 0:00:52.1]} 46. f4 {[%clk 0:00:04.5]} 46... Rd3+ {[%clk 0:00:52.3]}
47. Kg2 {[%clk 0:00:03.8]} 47... Ra3 {[%clk 0:00:53.2]} 48. h5 {[%clk
0:00:03.9]} 48... Rb3 {[%clk 0:00:52.2]} 49. h6 {[%clk 0:00:03.7]} 49... Kg6
{[%clk 0:00:52.1]} 50. g5 {[%clk 0:00:04.4]} 50... Rc3 {[%clk 0:00:51.9]} 51.
Kf2 {[%clk 0:00:04.1]} 51... Kf5 {[%clk 0:00:50.4]} 52. Kg2 {[%clk 0:00:03.7]}
52... Ra3 {[%clk 0:00:44.3]} 53. Kh2 {[%clk 0:00:02.1]} 53... Rb3 {[%clk
0:00:41.1]} 54. Kg2 {[%clk 0:00:02.5]} 54... Rc3 {[%clk 0:00:33.3]} 55. Kh2
{[%clk 0:00:02.9]} 55... Rc7 {[%clk 0:00:32.7]} 56. Kg3 {[%clk 0:00:02.8]} 56...
Rc3+ {[%clk 0:00:32.4]} 57. Kg2 {[%clk 0:00:03.2]} 57... Kg6 {[%clk 0:00:20.1]}
58. Kh2 {[%clk 0:00:02.9]} 58... Rb3 {[%clk 0:00:17.5]} 59. Kg2 {[%clk 0:00:03]}
59... Kf5 {[%clk 0:00:17.4]} 60. Kf2 {[%clk 0:00:01.8]} 60... Kg6 {[%clk
0:00:13.7]} 61. Kg2 {[%clk 0:00:01.8]} 1/2-1/2